bitfinex-derivatives/quotes_ETHF0:USTF0_20251220
["timestamp","ask_amount","ask_price","bid_price","bid_amount"]
[1766229474955,2.35415019,2978.2,2977.5,4.15092267]
[1766229475450,2.35415019,2978.2,2977.5,3.364]
[1766229475650,2.35415019,2978.2,2977.5,4.14894974]
[1766229476038,2.35415019,2978.2,2977.5,3.364]
[1766229476245,2.35415019,2978.2,2977.5,4.14894974]
[1766229476450,2.35847008,2978.3,2977.5,4.14894974]
[1766229476653,2.35847008,2978.3,2977.5,4.1355199]
[1766229476954,0.00503821,2978.3,2977.5,4.1355199]
[1766229477751,0.00503821,2978.3,2977.5,6.48895177]
[1766229487251,0.00503821,2978.3,2977.5,4.1355199]
[1766229495166,0.00503821,2978.3,2977.5,6.48895177]
[1766229495363,0.00503821,2978.3,2977.5,4.1355199]
[1766229495665,6.37e-06,2978.4,2977.5,4.1355199]
[1766229496465,0.00503821,2978.2,2977.5,4.1355199]
[1766229497966,0.00503821,2978.2,2977.6,5.195]
[1766229500570,0.00503821,2978.2,2977.6,7.54789719]
[1766229503871,3.821e-05,2978.2,2977.6,7.54789719]
[1766229507369,11.31169559,2979.1,2977.6,7.54789719]
[1766229507370,5.42935394,2980.5,2978.1,4.87377438]
[1766229507667,2.35289719,2979.9,2978.3,2.35289719]
[1766229507971,3.358,2980.1,2978.4,13.19281852]
[1766229508174,3.358,2980.0,2978.8,2.35289719]
[1766229508373,0.00503821,2979.7,2979.1,0.00503821]
[1766229508569,0.00503821,2979.7,2979.2,3.358]
[1766229519885,0.00503821,2979.7,2979.3,3.357]
[1766229524285,0.00503821,2979.7,2979.1,0.00503821]
[1766229524482,0.00503821,2979.7,2979.2,3.357]
[1766229525188,0.00503821,2979.7,2979.3,3.357]
[1766229525388,0.00503821,2979.7,2979.1,0.00503821]
[1766229525589,0.00503821,2979.7,2979.2,3.357]
[1766229529895,3.36175225,2980.0,2979.2,3.357]
[1766229530593,0.00375225,2980.0,2979.2,3.357]
[1766229530990,0.00503821,2979.9,2979.2,3.357]
[1766229531794,0.00503821,2979.9,2979.2,5.70755666]
[1766229532399,0.00375225,2980.0,2979.2,5.70755666]
[1766229533395,0.00503821,2979.9,2979.2,5.70755666]
[1766229534593,3.821e-05,2979.9,2979.2,5.70755666]
[1766229538906,3.357,2980.3,2979.2,5.70755666]
[1766229539607,3.357,2980.3,2979.5,2.35055666]
[1766229539807,0.00335878,2980.2,2979.6,3.357]
[1766229543215,0.00335878,2980.2,2979.2,2.35055666]
[1766229543412,0.00335878,2980.2,2979.3,5.299]
[1766229545715,0.00335878,2980.2,2979.1,0.00503821]
[1766229545922,0.00335878,2980.2,2979.2,6.86]
[1766229549225,0.00335878,2980.2,2979.1,0.00503821]
[1766229549424,0.00335878,2980.2,2979.2,3.357]
[1766229555429,0.00335878,2980.2,2979.2,5.70739609]
[1766229558723,2.35375487,2980.2,2979.2,3.357]
[1766229559125,2.35039609,2980.0,2979.3,3.357]
[1766229560122,2.35039609,2980.1,2979.3,3.357]
[1766229561233,1.02645537,2980.2,2979.3,3.357]
[1766229561431,2.35039609,2980.0,2979.3,3.357]
[1766229562330,1.02645537,2980.2,2979.3,3.357]
[1766229562632,2.35375487,2980.2,2979.3,3.357]
[1766229562824,3.37685146,2980.2,2979.3,3.357]
[1766229567134,3.37685146,2980.2,2979.1,0.00503821]
[1766229567328,3.37685146,2980.2,2979.2,3.357]
[1766229567635,3.37685146,2980.2,2979.1,0.00503821]
[1766229567831,3.37685146,2980.2,2979.2,3.357]
[1766229575337,3.37606388,2980.2,2979.2,3.357]
[1766229577236,2.35039609,2979.8,2979.2,3.357]
[1766229578830,2.35039609,2979.8,2979.1,0.00503821]
[1766229579031,2.35039609,2979.8,2979.2,3.357]
[1766229579837,5.70739609,2980.0,2979.2,3.357]
[1766229585338,3.357,2980.0,2979.2,3.357]
[1766229585745,3.357,2980.0,2979.1,0.00503821]
[1766229585947,3.357,2980.0,2979.2,3.357]
[1766229587935,3.357,2980.0,2979.3,2.3507416]
[1766229590551,3.357,2980.0,2979.2,3.357]
[1766229595052,3.36035878,2980.2,2979.2,3.357]
[1766229598157,5.71110038,2980.2,2979.2,3.357]
[1766229598456,3.36035878,2980.2,2979.3,2.3507416]
[1766229599758,3.36035878,2980.2,2979.4,3.357]
[1766229601859,2.3507416,2980.1,2979.1,0.00503821]
[1766229602061,2.3507416,2980.0,2979.2,3.357]
[1766229602254,2.3507416,2980.0,2979.1,4.63003821]
[1766229602453,2.3507416,2980.0,2979.3,3.357]
[1766229603459,5.71110038,2980.2,2979.3,3.357]
[1766229615385,3.36035878,2980.2,2979.3,3.357]
[1766229615585,3.36035878,2980.2,2979.1,0.00503821]
[1766229615787,3.36035878,2980.2,2979.2,3.357]
[1766229644809,2.35059388,2980.1,2979.3,3.357]
[1766229645013,3.37096491,2980.1,2979.4,3.357]
[1766229645703,3.37096491,2980.1,2979.3,3.357]
[1766229645909,3.37096491,2980.1,2979.1,0.00503821]
[1766229646110,3.37096491,2980.1,2979.2,3.357]
[1766229647017,3.37096491,2980.1,2979.1,0.00503821]
[1766229647314,3.37096491,2980.1,2979.2,3.357]
[1766229654323,1.02037103,2980.1,2979.2,3.357]
[1766229654622,3.36035878,2980.2,2979.2,3.357]
[1766229656426,3.36035878,2980.2,2979.1,0.00503821]
[1766229656625,3.36035878,2980.2,2979.2,3.357]
[1766229658325,4.38072981,2980.2,2979.2,3.357]
[1766229661831,3.36035878,2980.2,2979.2,3.357]
[1766229666434,3.36035878,2980.2,2979.1,0.00503821]
[1766229666739,3.36035878,2980.2,2979.2,3.357]
[1766229675352,5.71089562,2980.2,2979.2,3.357]
[1766229675654,1.02037103,2980.1,2979.2,3.357]
[1766229676051,3.357,2980.0,2979.2,3.357]
[1766229681756,3.357,2980.0,2979.3,2.35053684]
[1766229685660,3.357,2980.0,2979.4,3.357]
[1766229701570,0.00335878,2980.2,2979.4,3.357]
[1766229702667,0.00335878,2980.2,2979.3,2.35026995]
[1766229702868,0.00335878,2980.2,2979.4,3.357]
[1766229705271,0.00335878,2980.2,2979.5,2.35026995]
[1766229716190,0.00335878,2980.2,2979.4,4.1588814]
[1766229716191,0.00374016,2980.3,2979.8,2.35026995]
[1766229716384,4.016e-05,2980.3,2979.8,5.70726995]
[1766229717282,4.016e-05,2980.3,2979.8,3.357]
[1766229720591,0.03689602,2980.9,2979.8,3.357]
[1766229720592,1.20905497,2982.4,2980.2,2.35026995]
[1766229720787,2.35026995,2981.4,2981.0,3.821e-05]
[1766229720986,2.35026995,2981.2,2980.1,0.057]
[1766229721293,3.357,2981.3,2980.2,5.70726995]
[1766229721488,3.357,2981.6,2980.8,2.35026995]
[1766229721691,0.00345119,2981.3,2980.9,3.357]
[1766229722787,0.00345119,2981.3,2980.8,2.35530816]
[1766229722987,0.00345119,2981.3,2980.9,3.356]
[1766229723999,3.821e-05,2981.4,2981.0,2.35026995]
[1766229724390,3.821e-05,2981.4,2980.9,3.356]
[1766229724990,0.0042095,2981.4,2980.8,2.35530816]
[1766229725295,0.0042095,2981.4,2980.9,3.356]
[1766229731203,0.0042095,2981.4,2980.8,0.00503821]
[1766229731404,0.0042095,2981.4,2980.9,3.356]
[1766229731796,0.0042095,2981.4,2980.8,0.00503821]
[1766229732100,3.356,2981.3,2980.8,0.00503821]
[1766229737211,3.356,2981.3,2980.4,3.08579987]
[1766229737505,3.356,2981.3,2980.5,3.356]
[1766229737808,8.392,2982.1,2980.5,3.356]
[1766229737809,3.356,2983.0,2981.2,2.34874689]
[1766229738113,3.356,2983.0,2981.5,2.34874689]
[1766229738295,3.356,2983.0,2982.0,2.34874689]
[1766229738805,0.00500865,2982.8,2982.2,0.00502934]
[1766229739006,3.356,2982.7,2982.2,0.00502934]
[1766229749116,2.385,2983.5,2982.2,0.00502934]
[1766229749117,2.34874689,2984.6,2982.4,2.34874689]
[1766229749312,2.34874689,2984.3,2982.9,2.34874689]
[1766229749508,3.354,2984.2,2983.0,3.354]
[1766229749815,3.354,2984.2,2983.1,2.34874689]
[1766229750006,3.35724941,2984.2,2983.1,5.70602984]
[1766229750206,0.00324941,2984.2,2983.7,2.34874689]
[1766229750408,0.00324941,2984.2,2983.4,3.354]
[1766229750604,3.354,2984.1,2983.1,2.35202984]
[1766229750817,3.354,2984.1,2983.2,3.354]
[1766229752219,3.354,2984.1,2983.1,2.35202984]
[1766229752610,3.354,2984.1,2983.2,3.354]
[1766229752812,3.354,2984.1,2983.1,0.00328295]
[1766229753113,3.354,2984.1,2983.2,3.354]
[1766229753710,5.202,2984.1,2983.1,0.00328295]
[1766229758913,7.55074689,2984.1,2982.5,4.23357529]
[1766229759812,7.55074689,2984.1,2982.5,4.23599863]
[1766229760218,5.202,2984.1,2982.5,3.35542334]
[1766229760416,7.55074689,2984.1,2982.5,4.23469708]
[1766229761014,7.55074689,2984.1,2982.5,0.88169708]
[1766229761619,1.00797044,2984.0,2982.5,0.88169708]
[1766229762417,1.00797044,2984.0,2982.5,0.00242334]
[1766229763814,2.34874689,2983.8,2982.5,3.35542334]
[1766229764023,3.353,2983.7,2982.5,3.35542334]
[1766229766217,4.36409679,2983.7,2982.5,3.35542334]
[1766229766421,3.353,2983.7,2982.5,3.35542334]
[1766229767117,4.36523411,2983.7,2982.5,3.35542334]
[1766229769118,4.36523411,2983.7,2982.5,0.00242334]
[1766229769319,2.34534616,2983.5,2982.5,0.00242334]
[1766229769624,6.719,2983.4,2982.5,0.00242334]
[1766229784045,3.353,2983.4,2982.5,0.00242334]
[1766229784242,3.353,2983.7,2982.6,3.353]
[1766229784447,3.353,2983.6,2982.8,2.34534616]
[1766229784738,0.00324941,2984.2,2983.4,2.34534616]
[1766229784935,3.35624941,2984.2,2983.4,2.34534616]
[1766229785136,3.35624941,2984.2,2983.7,2.34534616]
[1766229785335,0.00324941,2984.2,2983.7,3.26038421]
[1766229785539,3.20772966,2984.3,2983.7,3.26038421]
[1766229785744,3.20772966,2984.3,2983.7,0.00502934]
[1766229786345,3.20772966,2984.3,2983.0,6.8094339]
[1766229786544,3.21120713,2984.3,2983.0,3.2604339]
[1766229786744,3.21120713,2984.3,2983.1,3.353]
[1766229786946,3.21120713,2984.3,2983.2,3.353]
[1766229787241,3.21120713,2984.3,2983.0,3.2604339]
[1766229787447,0.00502934,2983.9,2983.4,0.00502934]
[1766229789135,0.00502934,2983.9,2982.5,0.00242334]
[1766229789352,2.3503755,2983.9,2982.6,3.871]
[1766229789550,0.00502934,2983.9,2982.6,3.871]
[1766229790049,0.00502934,2983.9,2983.0,0.00502934]
[1766229790453,1.37659497,2985.9,2983.8,4.69069232]
[1766229790743,2.34534616,2985.3,2983.9,3.353]
[1766229790948,3.353,2985.2,2983.9,3.353]
[1766229791149,3.353,2985.2,2983.5,8.3]
[1766229791348,5.69834616,2985.2,2983.6,9.04434616]
[1766229791550,0.00502934,2984.7,2984.1,0.00502934]
[1766229791752,0.00502934,2984.7,2984.1,3.35802934]
[1766229792155,0.00502934,2984.7,2984.1,0.00502934]
[1766229792342,0.00502934,2984.7,2983.5,8.3]
[1766229792343,0.00502934,2984.7,2983.5,1.165]
[1766229792543,0.00502934,2984.7,2983.8,3.353]
[1766229792940,2.34534616,2984.6,2983.6,3.352]
[1766229793150,3.352,2984.5,2983.6,3.352]
[1766229793350,3.352,2984.5,2983.8,0.00502934]
[1766229800056,2.34358848,2984.4,2983.2,2.34358848]
[1766229800256,0.00376751,2985.2,2984.3,2.34358848]
[1766229800447,0.00376751,2985.2,2984.5,2.34358848]
[1766229801354,0.00502934,2985.1,2984.6,0.00502934]
[1766229801650,0.00502934,2985.1,2984.6,0.00922146]
[1766229805459,3.351,2985.0,2984.6,0.00922146]
[1766229805955,3.351,2985.0,2984.1,11.651]
[1766229806154,3.351,2985.0,2984.1,13.99322417]
[1766229806358,3.351,2985.0,2984.3,2.34222417]
[1766229806959,3.351,2985.0,2984.4,0.00502934]
[1766229809957,36.94517206,2985.8,2984.4,0.00502934]
[1766229809958,3.351,2986.2,2984.8,0.98783381]
[1766229810155,9.168,2986.1,2984.4,0.00502934]
[1766229810456,9.168,2986.1,2984.5,3.351]
[1766229810756,0.00502934,2985.6,2984.5,3.351]
[1766229810960,3.351,2985.5,2984.4,0.00502934]
[1766229811161,0.892,2985.4,2984.4,0.00502934]
[1766229812259,3.42617206,2985.2,2983.5,3.351]
[1766229812447,3.4312014,2985.6,2983.5,3.351]
[1766229812646,12.766,2985.5,2983.5,3.351]
[1766229813158,26.397,2985.4,2983.5,3.351]
[1766229813365,26.397,2985.4,2984.2,0.00502934]
[1766229816653,0.00502934,2985.6,2984.2,0.00502934]
[1766229816848,12.795,2985.5,2984.2,0.00502934]
[1766229819155,12.795,2985.5,2984.2,2.934e-05]
[1766229819460,12.795,2985.5,2983.6,3.351]
[1766229820261,12.795,2985.5,2984.3,0.00502934]
[1766229821260,0.00502934,2985.6,2984.3,0.00502934]
[1766229821456,3.35530426,2986.1,2984.5,3.42617206]
[1766229821664,3.35530426,2986.1,2984.6,3.351]
[1766229821862,3.35530426,2986.1,2984.7,8.3]
[1766229822162,3.35530426,2986.1,2984.5,3.42617206]
[1766229822360,0.00502934,2985.6,2984.6,3.351]
[1766229822555,3.35602934,2985.6,2984.4,11.88362]
[1766229822762,3.35602934,2985.6,2984.5,11.651]
[1766229827161,3.351,2985.5,2984.5,11.651]
[1766229829565,0.00502934,2985.6,2984.5,11.651]
[1766229829763,3.351,2985.5,2984.7,3.42617206]
[1766229830770,2.934e-05,2985.6,2984.8,3.351]
[1766229831068,3.35102934,2985.6,2984.8,3.351]
[1766229833873,2.934e-05,2985.6,2984.8,3.351]
[1766229834074,3.35,2985.5,2984.8,3.351]
[1766229834275,2.934e-05,2985.6,2984.8,3.351]
[1766229834474,3.35,2985.5,2984.8,3.351]
[1766229837169,8.377,2986.3,2984.8,3.351]
[1766229837170,0.16745,2987.6,2985.3,0.16757]
[1766229837370,6.77617206,2987.5,2985.3,1.14120456]
[1766229837570,3.35,2987.5,2985.6,3.42617206]
[1766229837769,3.35,2987.5,2985.3,0.16757]
[1766229837770,0.99777813,2987.8,2986.0,3.42617206]
[1766229837971,8.675,2987.7,2986.0,3.42617206]
[1766229838177,0.00502934,2987.1,2986.6,0.00502934]
[1766229838478,3.35,2987.0,2986.6,0.00502934]
[1766229838676,0.00502934,2987.1,2986.6,0.00502934]
[1766229838978,3.35,2987.0,2986.6,0.00502934]
[1766229839874,3.35,2986.9,2986.6,0.00502934]
[1766229840380,3.35,2986.8,2986.6,0.00502934]
[1766229840977,5.11302934,2987.1,2986.6,0.00502934]
[1766229841275,3.35,2987.0,2986.0,0.00337939]
[1766229843179,3.35,2987.0,2986.2,0.00502934]
[1766229843383,3.35,2987.0,2986.0,0.00337939]
[1766229843571,3.35,2987.0,2985.2,8.3]
[1766229843776,3.35,2987.0,2985.3,3.35]
[1766229844287,3.35,2987.0,2985.9,0.00502934]
[1766229844576,3.35,2987.0,2985.9,0.00835586]
[1766229845885,0.00502934,2987.1,2985.9,0.00835586]
[1766229846072,12.02,2987.0,2985.9,0.00835586]
[1766229846776,12.02,2987.0,2985.3,3.35]
[1766229846990,12.02,2987.0,2985.2,8.3]
[1766229847179,15.44230663,2987.0,2985.2,11.65]
[1766229847379,15.44230663,2987.0,2985.2,3.35]
[1766229847875,15.44230663,2987.0,2985.8,0.00335288]
[1766229848482,15.60978663,2987.0,2985.8,0.00335288]
[1766229848887,15.60978663,2987.0,2985.2,0.00408475]
[1766229849083,0.00502934,2987.1,2985.2,0.00408475]
[1766229849384,0.00502934,2987.1,2985.6,3.42230663]
[1766229849685,1.01102934,2987.1,2986.0,3.42230663]
[1766229850180,0.16739,2988.6,2985.8,3.35]
[1766229850181,1.20905497,2989.2,2985.8,6.701]
[1766229850378,3.35,2989.5,2987.7,3.42230663]
[1766229850681,3.35,2989.5,2986.1,10.59937438]
[1766229850682,3.42230663,2989.1,2986.2,0.16752]
[1766229850878,3.42230663,2988.3,2986.3,4.404]
[1766229851076,3.42230663,2987.9,2985.9,4.32183931]
[1766229851378,0.00501906,2987.2,2986.6,0.00499511]
[1766229851582,4.405,2987.1,2986.6,0.00499511]
[1766229852084,3.349,2987.0,2985.9,0.00330085]
[1766229853787,0.00501906,2987.2,2985.9,0.00330085]
[1766229854184,3.349,2987.1,2986.1,3.42230663]
[1766229854381,6.024,2987.1,2986.1,3.42230663]
[1766229855284,0.00501906,2987.2,2986.1,3.42230663]
[1766229855488,7.345,2987.1,2986.1,3.42230663]
[1766229855686,4.649,2987.1,2986.1,3.42230663]
[1766229855988,3.349,2987.0,2986.1,3.42230663]
[1766229856682,3.349,2987.0,2985.9,0.00330085]
[1766229858288,3.349,2986.9,2986.0,3.349]
[1766229860087,4.039,2987.1,2986.0,3.349]
[1766229860088,3.349,2986.8,2986.0,3.349]
[1766229860394,0.00307728,2987.9,2986.0,3.349]
[1766229860395,3.349,2989.4,2987.0,3.87697377]
[1766229860584,3.349,2989.3,2987.1,18.97]
[1766229860778,0.99,2989.2,2987.1,18.97]
[1766229860984,0.99,2989.2,2987.1,22.69682269]
[1766229861178,0.00501906,2988.4,2987.9,0.00501906]
[1766229862686,0.00501906,2988.4,2987.2,8.3]
[1766229862885,0.00501906,2988.4,2987.0,3.349]
[1766229863088,0.00501906,2988.4,2986.5,0.98378971]
[1766229863286,0.00501906,2988.4,2986.8,3.349]
[1766229864790,3.348,2988.3,2986.8,3.349]
[1766229865385,3.348,2988.2,2986.8,3.349]
[1766229865688,0.00501906,2988.4,2986.8,3.349]
[1766229865885,3.348,2988.3,2986.8,3.349]
[1766229866493,3.348,2988.3,2986.8,3.51649]
[1766229867393,3.348,2988.3,2986.9,8.3]
[1766229868696,3.348,2988.3,2986.9,9.3029138]
[1766229869990,0.00270272,2989.2,2988.0,3.87697377]
[1766229870190,0.00270272,2989.2,2988.0,3.88081496]
[1766229870498,0.00270272,2989.2,2988.1,3.348]
[1766229871094,0.00501906,2988.9,2988.4,0.00501906]
[1766229871298,8.37,2990.3,2988.4,0.00501906]
[1766229871299,3.348,2989.7,2988.5,3.51539]
[1766229871493,3.348,2989.6,2988.5,0.16739]
[1766229871795,3.348,2989.6,2988.6,3.348]
[1766229872200,0.00501906,2989.4,2988.5,0.16739]
[1766229872502,0.00501906,2989.4,2988.6,3.348]
[1766229872897,3.347,2989.3,2988.5,0.16739]
[1766229873101,3.347,2989.3,2988.6,3.347]
[1766229873602,3.347,2989.3,2988.4,0.00501906]
[1766229873804,3.347,2989.3,2988.5,3.347]
[1766229874003,0.00501906,2989.4,2988.5,3.347]
[1766229874205,3.35201906,2989.4,2988.5,11.647]
[1766229874407,3.35201906,2989.4,2988.5,8.3]
[1766229874606,3.35201906,2989.4,2988.6,3.347]
[1766229874906,0.00501906,2989.4,2988.6,3.347]
[1766229875102,0.00501906,2989.4,2988.5,8.3]
[1766229875309,0.00501906,2989.4,2988.6,3.347]
[1766229875809,0.00501906,2989.4,2988.5,8.3]
[1766229876009,0.00501906,2989.4,2988.6,3.347]
[1766229876906,0.00501906,2989.4,2988.4,0.00501906]
[1766229877209,0.00501906,2989.4,2988.5,3.347]
[1766229877906,0.00501906,2989.4,2988.4,8.30501906]
[1766229878111,0.00501906,2989.4,2988.4,3.35201906]
[1766229878815,0.00501906,2989.4,2988.4,0.00501906]
[1766229880706,1.847,2989.3,2988.4,0.00501906]
[1766229881012,3.347,2989.2,2988.4,0.00501906]
[1766229881400,3.347,2989.2,2988.0,0.00384119]
[1766229881608,3.347,2989.2,2986.6,3.87091739]
[1766229881914,3.347,2989.2,2987.4,4.36017457]
[1766229882309,3.347,2989.2,2988.0,0.00501906]
[1766229882512,3.347,2989.2,2987.4,3.347]
[1766229882710,3.347,2989.2,2987.4,0.00300303]
[1766229882911,3.347,2989.2,2987.4,3.35000303]
[1766229883812,0.00501906,2989.4,2988.0,3.87091739]
[1766229884015,0.00501906,2989.4,2988.4,3.87091739]
[1766229884215,0.00501906,2989.4,2988.5,3.347]
[1766229884410,0.00501906,2989.4,2988.3,3.347]
[1766229884716,1.05201906,2989.4,2987.7,1.07827665]
[1766229885017,1.05201906,2989.4,2987.4,3.35000303]
[1766229885204,1.05201906,2989.4,2987.4,0.00300303]
[1766229885401,1.21936906,2989.4,2987.4,0.00300303]
[1766229886015,2.21314043,2989.4,2987.4,0.00300303]
[1766229886205,3.4221954,2989.4,2987.4,0.00300303]
[1766229887515,2.21314043,2989.4,2987.4,0.00300303]
[1766229888012,3.4221954,2989.4,2987.4,0.00300303]
[1766229888513,2.21314043,2989.4,2987.4,0.00300303]
[1766229889310,1.21936906,2989.4,2987.4,0.00300303]
[1766229889511,2.21314043,2989.4,2987.4,0.00300303]
[1766229889912,0.16735,2989.3,2987.4,0.00300303]
[1766229890111,7.21791739,2989.2,2987.4,0.00300303]
[1766229890417,34.46577137,2989.1,2987.4,0.00300303]
[1766229890614,9.36177137,2989.0,2987.4,0.00300303]
[1766229890813,4.34077137,2988.9,2987.4,0.00300303]
[1766229891010,4.34077137,2988.9,2986.7,0.05305752]
[1766229891211,4.34077137,2988.9,2986.5,0.16751]
[1766229891212,4.03829739,2988.7,2986.3,3.347]
[1766229891517,0.00501906,2987.8,2986.3,11.647]
[1766229891719,4.541,2987.7,2986.3,11.647]
[1766229891914,4.541,2987.7,2986.3,8.3]
[1766229892121,4.541,2987.7,2986.3,3.34956608]
[1766229892615,4.541,2987.7,2986.3,0.00256608]
[1766229892822,4.541,2987.7,2986.3,3.34956608]
[1766229893015,4.541,2987.7,2986.3,0.00256608]
[1766229893219,4.541,2987.7,2986.3,3.34956608]
[1766229893423,4.541,2987.7,2986.3,0.00256608]
[1766229897928,0.17245906,2987.8,2985.7,3.348]
[1766229898124,5.19,2987.6,2985.7,3.348]
[1766229898730,5.19,2987.6,2985.7,3.35100785]
[1766229904321,5.19,2987.6,2985.7,0.00300785]
[1766229904629,5.35745,2987.6,2985.7,3.35100785]
[1766229907230,5.35745,2987.6,2985.7,0.00300785]
[1766229908735,0.16745,2987.5,2985.7,0.00300785]
[1766229908931,3.349,2987.4,2985.7,0.00300785]
[1766229909135,0.16746,2987.3,2985.7,0.00300785]
[1766229912930,48.251,2987.2,2985.7,0.00300785]
[1766229913137,3.349,2987.1,2985.7,0.00300785]
[1766229913635,3.51648,2987.1,2985.7,0.00300785]
[1766229913833,3.51648,2987.1,2985.2,3.349]
[1766229914340,4.49186622,2987.1,2985.2,3.349]
[1766229914639,4.49186594,2987.1,2985.2,3.349]
[1766229914835,3.51648,2987.1,2985.2,3.35288351]
[1766229915231,4.49177845,2987.1,2985.2,0.00388351]
[1766229917635,3.51648,2987.1,2985.2,0.00388351]
[1766229917839,26.468,2987.0,2985.2,0.00388351]
[1766229918042,0.97606737,2986.9,2985.2,0.00388351]
[1766229919846,0.16748,2987.1,2985.4,3.42303575]
[1766229920144,26.465,2987.0,2985.5,3.349]
[1766229922346,0.98910229,2986.9,2985.5,3.349]
[1766229923443,3.349,2988.6,2986.8,3.42303575]
[1766229923650,3.349,2988.1,2986.9,3.349]
[1766229924547,0.00882866,2987.8,2986.9,3.349]
[1766229925739,3.35782866,2987.8,2986.9,3.349]
[1766229929444,0.00882866,2987.8,2986.9,3.349]
[1766229931351,2.866e-05,2987.8,2987.2,3.42303575]
[1766229931552,2.866e-05,2987.8,2987.3,3.348]
[1766229932552,0.00504772,2987.8,2987.3,3.35545942]
[1766229934544,0.16729,2990.5,2987.9,0.16743]
[1766229934848,3.348,2990.4,2988.3,3.42303575]
[1766229935050,3.348,2990.4,2988.4,3.348]
[1766229935451,0.00501906,2989.7,2989.1,0.00501906]
[1766229935652,3.348,2989.6,2988.8,3.348]
[1766229936654,3.348,2989.6,2988.9,0.00501906]
[1766229938668,3.348,2989.6,2988.3,3.42303575]
[1766229938854,3.348,2989.6,2988.4,3.348]
[1766229939360,3.348,2989.6,2988.4,3.347]
[1766229940862,3.348,2989.6,2987.9,11.89046575]
[1766229941072,3.348,2989.6,2988.0,3.347]
[1766229941663,3.348,2989.6,2987.9,11.72303575]
[1766229941870,3.348,2989.6,2988.0,3.347]
[1766229942763,3.348,2989.6,2987.9,3.42303575]
[1766229942965,3.348,2989.6,2987.5,1.02440794]
[1766229942966,3.348,2989.6,2988.0,3.347]
[1766229943269,3.348,2989.6,2987.9,3.42303575]
[1766229943460,3.348,2989.6,2988.0,3.347]
[1766229944965,3.348,2989.6,2987.9,3.42303575]
[1766229945262,3.348,2989.6,2988.1,3.347]
[1766229949966,3.348,2989.6,2987.7,3.42303575]
[1766229950173,3.348,2989.6,2987.8,3.347]
[1766229951366,1.20905497,2990.8,2987.8,3.347]
[1766229951560,3.347,2990.6,2989.0,3.41689563]
[1766229951759,3.347,2990.6,2989.1,3.347]
[1766229951960,3.748,2990.6,2989.0,3.41689563]
[1766229952272,3.748,2990.6,2989.1,3.347]
[1766229952472,0.00501906,2990.0,2989.1,3.347]
[1766229953368,0.00501906,2990.0,2988.8,8.367]
[1766229953369,0.00501906,2990.0,2989.2,3.347]
[1766229953568,0.00501906,2990.0,2989.2,3.346]
[1766229955070,3.346,2989.9,2988.6,8.3]
[1766229955373,3.346,2989.9,2988.7,8.153]
[1766229955569,3.346,2989.9,2988.4,1.08688055]
[1766229955772,4.976,2989.9,2988.5,3.346]
[1766229956371,4.976,2989.9,2988.4,0.00501906]
[1766229956576,8.366,2989.8,2988.5,3.346]
[1766229956884,3.09201906,2990.0,2988.6,3.346]
[1766229957166,3.346,2989.7,2988.8,3.41689563]
[1766229957371,3.346,2989.7,2988.9,3.346]
[1766229957762,0.00501906,2990.0,2988.9,3.346]
[1766229957965,3.346,2989.9,2988.9,3.346]
[1766229961778,3.346,2989.9,2988.4,0.00501906]
[1766229961979,3.346,2989.9,2988.5,6.76289563]
[1766229962575,3.346,2989.9,2988.6,3.346]
[1766229963079,3.346,2989.9,2988.5,9.73389563]
[1766229963280,3.346,2989.9,2988.6,3.346]
[1766229964283,3.346,2989.9,2988.9,3.41689563]
[1766229964481,3.346,2989.9,2989.0,3.346]
[1766229964776,3.346,2989.9,2988.5,8.53989563]
[1766229964977,3.346,2989.9,2988.5,3.41689563]
[1766229965282,3.346,2989.9,2988.6,3.346]
[1766229966578,3.346,2989.9,2988.4,0.00501906]
[1766229966779,3.346,2989.9,2988.5,3.346]
[1766229967979,3.346,2989.9,2988.6,3.346]
[1766229975787,3.346,2989.9,2988.4,0.00501906]
[1766229976102,3.346,2989.9,2988.4,3.35101906]
[1766229977293,6.76289563,2989.9,2988.4,0.00501906]
[1766229977890,0.95723884,2989.8,2988.4,0.00501906]
[1766229978194,8.365,2989.7,2988.4,0.00501906]
[1766229978395,16.866,2989.6,2988.4,0.00501906]
[1766229980787,16.866,2989.6,2987.8,3.346]
[1766229981187,16.866,2989.6,2987.5,0.16745]
[1766229981486,16.866,2989.6,2987.6,3.346]
[1766229983387,16.866,2989.6,2987.5,0.16745]
[1766229983595,16.866,2989.6,2987.6,3.346]
[1766229983887,16.866,2989.6,2987.7,3.346]
[1766229985301,16.866,2989.6,2987.5,8.46745]
[1766229985591,16.866,2989.6,2987.6,3.346]
[1766229986492,16.866,2989.6,2987.4,8.3]
[1766229986689,16.866,2989.6,2987.5,3.346]
[1766229986890,17.03333,2989.6,2987.5,3.346]
[1766229987088,17.03333,2989.6,2987.3,0.00244036]
[1766229987089,1.11890476,2989.5,2987.3,0.00244036]
[1766229987286,1.11890476,2989.5,2987.5,3.346]
[1766229987486,1.11890476,2989.5,2987.3,0.00244036]
[1766229989392,1.11890476,2989.5,2987.4,3.346]
[1766229989593,0.16734,2989.4,2987.4,3.346]
[1766229989797,3.346,2989.3,2987.3,3.34844036]
[1766229990092,3.51335,2989.3,2987.3,3.34844036]
[1766229990490,3.51335,2989.3,2987.3,0.00244036]
[1766229990700,0.16736,2989.2,2987.3,0.00244036]
[1766229994899,0.16736,2989.1,2987.3,0.00244036]
[1766229995097,0.00501906,2988.5,2987.3,0.00244036]
[1766229995306,15.147,2988.4,2987.3,0.00244036]
[1766230004703,2.33804689,2988.3,2987.3,0.00244036]
[1766230005001,2.34197408,2988.3,2987.3,0.00244036]
[1766230006801,0.00392719,2988.3,2987.3,0.00244036]